bitfinex-derivatives/quotes_SOLF0:USTF0_20241212
["timestamp","ask_amount","ask_price","bid_price","bid_amount"]
[1733968662689,2.21,226.08,226.03,6.59905607]
[1733968662890,2.08,226.12,226.05,6.59905607]
[1733968663095,8.67905607,226.12,226.05,6.59905607]
[1733968664392,2.2097,226.1,226.07,6.59905607]
[1733968666199,2.2098,226.09,226.07,6.59905607]
[1733968666692,2.2098,226.09,226.05,8.80925607]
[1733968667100,6.59905607,226.11,226.05,6.59905607]
[1733968667295,6.59905607,226.11,226.03,6.59905607]
[1733968667296,2.21,226.07,226.03,6.59905607]
[1733968669793,6.59905607,226.11,226.03,6.59905607]
[1733968670001,2.2101,226.06,226.03,6.59905607]
[1733968672195,2.2101,226.06,226.02,2.2105]
[1733968672397,2.2101,226.06,226.04,6.59905607]
[1733968672992,2.2101,226.06,226.02,2.2105]
[1733968673215,2.2101,226.06,226.04,6.59905607]
[1733968679307,2.21,226.07,226.04,6.59905607]
[1733968681902,2.08,226.13,226.02,6.59905607]
[1733968681903,2.2103,226.04,226.02,6.59905607]
[1733968682101,6.59905607,226.06,225.99,1.4769]
[1733968682311,2.08,226.05,225.98,1.4623]
[1733968682509,6.59905607,226.04,225.98,1.4623]
[1733968682708,6.59905607,226.04,225.96,6.59905607]
[1733968683209,2.08,226.05,225.96,6.59905607]
[1733968683210,2.2107,226.0,225.96,6.59905607]
[1733968684313,6.59905607,226.02,225.96,8.81015607]
[1733968684314,2.2106,226.02,225.96,8.81015607]
[1733968684507,6.59905607,226.04,225.96,8.81015607]
[1733968684707,6.59905607,226.04,225.98,6.59905607]
[1733968685306,6.59905607,226.04,225.96,6.59905607]
[1733968685511,6.59905607,226.02,225.94,6.59905607]
[1733968686014,2.211,225.97,225.94,6.59905607]
[1733968686412,2.2109,225.98,225.94,6.59905607]
[1733968687612,2.211,225.97,225.94,6.59905607]
[1733968687914,8.67905607,226.0,225.93,0.22803]
[1733968689713,2.2109,225.98,225.94,6.59905607]
[1733968690617,2.08,226.0,225.93,0.22803]
[1733968690812,2.08,226.0,225.94,6.59905607]
[1733968692118,2.211,225.98,225.94,6.59905607]
[1733968693920,2.2108,226.0,225.95,2.2112]
[1733968694117,2.08,226.04,225.98,6.59905607]
[1733968694315,2.08,226.04,225.96,6.59905607]
[1733968694316,6.59905607,226.03,225.96,6.59905607]
[1733968694817,2.2107,226.01,225.96,8.81005607]
[1733968699130,2.2107,226.01,225.97,2.211]
[1733968699724,2.2107,226.01,225.94,2.08]
[1733968699725,2.08,226.04,225.98,6.59905607]
[1733968699922,6.59905607,226.06,226.0,6.59905607]
[1733968700530,2.08,226.07,225.94,2.08]
[1733968700531,2.08,226.08,226.02,6.59905607]
[1733968700824,6.59905607,226.07,225.99,6.59905607]
[1733968702726,6.59905607,226.05,225.96,2.08]
[1733968702927,6.59905607,226.03,225.94,2.08]
[1733968703124,8.67905607,226.03,225.95,6.59905607]
[1733968703838,2.2106,226.01,225.97,2.211]
[1733968705651,5.42877673,226.14,225.99,6.59905607]
[1733968705845,7.50877673,226.14,226.08,6.59905607]
[1733968706545,2.08,226.15,226.1,6.59905607]
[1733968706742,2.08,226.14,226.1,6.59905607]
[1733968707558,8.67905607,226.15,226.1,6.59905607]
[1733968709545,2.08,226.15,226.1,6.59905607]
[1733968712442,2.2093,226.14,226.1,6.59905607]
[1733968712842,6.59905607,226.12,226.02,5.19223916]
[1733968713146,6.59905607,226.08,226.01,6.59905607]
[1733968713347,8.67905607,226.08,226.01,6.59905607]
[1733968713546,6.59905607,226.06,226.0,4.28947]
[1733968713743,6.59905607,226.06,226.0,11.73831545]
[1733968714250,8.80915607,226.06,226.0,13.94901545]
[1733968715243,8.80915607,226.06,226.01,2.21229149]
[1733968715951,8.80915607,226.06,226.01,4.42289149]
[1733968716553,6.59905607,226.06,226.01,2.21229149]
[1733968716849,2.08,226.08,226.02,6.59905607]
[1733968716850,8.67905607,226.08,226.02,6.59905607]
[1733968717247,6.59905607,226.1,226.04,6.59905607]
[1733968717447,2.08,226.09,226.04,6.59905607]
[1733968717649,2.08,226.1,226.04,6.59905607]
[1733968718750,4.2897,226.1,226.05,2.2102]
[1733968718954,2.2097,226.1,226.05,2.2102]
[1733968720048,4.2896,226.11,226.05,2.2102]
[1733968720642,2.2097,226.1,226.05,2.2102]
[1733968721349,2.08,226.11,226.06,6.59905607]
[1733968721550,6.59905607,226.14,226.08,6.59905607]
[1733968721849,2.08,226.14,226.08,6.59905607]
[1733968722049,4.2894,226.14,226.08,6.59905607]
[1733968722455,4.2894,226.14,226.08,8.80885607]
[1733968724559,4.2894,226.14,226.08,6.59905607]
[1733968724751,4.2894,226.14,226.09,2.2097]
[1733968725655,10.88845607,226.14,226.09,2.2097]
[1733968726554,10.88845607,226.14,226.08,6.59905607]
[1733968726847,2.08,226.14,226.1,8.80865607]
[1733968727354,2.2092,226.15,226.1,6.59905607]
[1733968727651,8.67905607,226.16,226.1,6.59905607]
[1733968727857,2.08,226.16,226.12,6.59905607]
[1733968728252,2.08,226.17,226.12,6.59905607]
[1733968729261,4.2891,226.17,226.12,8.80845607]
[1733968731457,2.2091,226.17,226.12,8.80845607]
[1733968731661,2.08,226.18,226.14,8.80835607]
[1733968731955,6.59905607,226.22,226.16,6.59905607]
[1733968732159,2.08,226.21,226.16,6.59905607]
[1733968732355,6.59905607,226.22,226.16,6.59905607]
[1733968732557,8.67905607,226.22,226.16,6.59905607]
[1733968733358,2.08,226.25,226.2,6.59905607]
[1733968733854,4.4137,226.4,226.15,2.08]
[1733968733855,4.4137,226.4,226.23,2.2084]
[1733968734056,6.59905607,226.3,226.23,2.2084]
[1733968734257,8.67905607,226.3,226.23,2.2084]
[1733968734560,2.2079,226.29,226.24,8.80735607]
[1733968734760,2.08,226.3,226.26,6.59905607]
[1733968735461,6.59905607,226.32,226.26,6.59905607]
[1733968735462,2.2077,226.31,226.26,6.59905607]
[1733968736459,4.2876,226.32,226.28,6.59905607]
[1733968738060,2.2077,226.31,226.28,6.59905607]
[1733968738260,2.2077,226.31,226.26,8.80715607]
[1733968738658,2.2077,226.31,226.26,6.59905607]
[1733968739558,2.2081,226.27,226.21,6.4267]
[1733968739759,8.65905607,226.27,226.21,4.2182]
[1733968739960,8.65905607,226.27,226.21,1.3346]
[1733968739961,6.59905607,226.25,226.21,1.3346]
[1733968740360,2.2087,226.21,226.17,6.59905607]
[1733968741663,2.2087,226.21,226.15,6.91286948]
[1733968741664,2.2084,226.24,226.19,6.59905607]
[1733968741856,6.59905607,226.25,226.19,6.59905607]
[1733968742060,8.65905607,226.27,226.19,6.59905607]
[1733968742255,2.06,226.26,226.21,6.59905607]
[1733968743458,6.59905607,226.25,226.19,6.59905607]
[1733968744568,2.2085,226.23,226.19,6.59905607]
[1733968746167,5.31975917,226.36,226.21,6.59905607]
[1733968746168,2.06,226.27,226.21,6.59905607]
[1733968746363,8.65905607,226.28,226.21,6.59905607]
[1733968747361,2.2081,226.26,226.21,6.59905607]
[1733968747562,2.2081,226.26,226.23,6.59905607]
[1733968747761,2.06,226.28,226.23,6.59905607]
[1733968748165,4.268,226.28,226.23,8.80745607]
[1733968748368,4.268,226.28,226.25,6.59905607]
[1733968748772,2.208,226.28,226.25,6.59905607]
[1733968748972,2.06,226.31,226.25,6.59905607]
[1733968749173,2.06,226.31,226.24,1.4469]
[1733968749174,2.2079,226.29,226.27,6.59905607]
[1733968751170,2.2079,226.29,226.24,3.6552]
[1733968751367,2.2076,226.32,226.27,2.208]
[1733968751568,11.76926273,226.39,226.26,10.30806273]
[1733968751569,2.06,226.33,226.26,10.30806273]
[1733968751971,2.2076,226.32,226.27,2.208]
[1733968752179,2.06,226.33,226.26,10.30806273]
[1733968752469,10.30806273,226.42,226.29,10.30806273]
[1733968752670,2.06,226.41,226.32,10.30806273]
[1733968752869,2.2068,226.4,226.32,12.51556273]
[1733968753065,2.06,226.41,226.32,10.30806273]
[1733968753275,2.06,226.4,226.32,10.30806273]
[1733968754272,2.06,226.4,226.29,10.30806273]
[1733968754976,2.06,226.4,226.29,12.51586273]
[1733968755575,2.2073,226.35,226.29,12.51586273]
[1733968756278,2.2073,226.35,226.3,2.2077]
[1733968757778,2.06,226.4,226.31,2.2076]
[1733968757779,2.2072,226.36,226.31,2.2076]
[1733968758076,10.30806273,226.42,226.29,10.30806273]
[1733968758282,2.06,226.41,226.33,2.2074]
[1733968758471,2.06,226.41,226.34,1.4043]
[1733968758675,2.06,226.41,226.29,10.30806273]
[1733968758870,10.30806273,226.39,226.28,1.4043]
[1733968759165,2.2076,226.32,226.28,1.4043]
[1733968759571,2.06,226.35,226.28,1.4043]
[1733968760573,2.06,226.35,226.28,3.6122]
[1733968760574,2.2075,226.33,226.28,3.6122]
[1733968760969,2.06,226.35,226.28,1.4043]
[1733968761177,2.2075,226.33,226.28,1.4043]
[1733968761374,2.06,226.35,226.28,1.4043]
[1733968762076,2.06,226.35,226.23,13.13646273]
[1733968762670,2.06,226.35,226.23,20.61932395]
[1733968763176,2.2081,226.27,226.23,8.10286122]
[1733968763373,2.06,226.29,226.2,10.30806273]
[1733968763576,2.06,226.29,226.19,1.3593]
[1733968764081,2.208,226.27,226.2,2.2087]
[1733968765075,2.208,226.27,226.21,2.2086]
[1733968766786,2.2081,226.26,226.21,2.2086]
[1733968767478,2.208,226.28,226.22,2.2085]
[1733968767682,2.06,226.29,226.22,2.2085]
[1733968768676,2.2081,226.27,226.22,2.2085]
[1733968769482,2.06,226.29,226.2,5.38044506]
[1733968770484,2.208,226.28,226.22,2.2085]
[1733968771184,2.208,226.28,226.22,8.8078584]
[1733968772380,8.6593584,226.29,226.22,8.8078584]
[1733968772381,2.2081,226.27,226.22,8.8078584]
[1733968772579,6.5993584,226.27,226.19,1.3593]
[1733968772779,6.5993584,226.25,226.19,1.3593]
[1733968772986,2.2085,226.23,226.19,1.3593]
[1733968773586,2.2086,226.22,226.19,1.3593]
[1733968773887,6.5993584,226.21,226.15,8.8085584]
[1733968775287,2.06,226.23,226.15,2.2092]
[1733968775888,2.06,226.23,226.13,5.31946421]
[1733968776186,2.2088,226.2,226.14,2.2093]
[1733968779489,10.31861524,226.29,226.14,10.31861524]
[1733968779785,2.06,226.28,226.17,10.31861524]
[1733968779984,2.06,226.28,226.18,1.3472]
[1733968780887,2.06,226.27,226.2,2.2086]
[1733968782700,2.2082,226.25,226.2,2.2086]
[1733968787405,2.2081,226.27,226.22,2.2085]
[1733968788707,2.06,226.28,226.22,2.2085]
[1733968788906,2.2082,226.26,226.22,2.2085]
[1733968795314,2.2082,226.26,226.22,8.80822367]
[1733968795913,6.59972367,226.27,226.18,1.3472]
[1733968796218,6.59972367,226.23,226.18,1.3472]
[1733968796511,6.59972367,226.23,226.15,6.59972367]
[1733968796512,2.2089,226.18,226.15,6.59972367]
[1733968797510,2.2088,226.19,226.15,6.59972367]
[1733968799714,2.2088,226.19,226.17,6.59972367]
[1733968800317,2.06,226.26,226.17,6.59972367]
[1733968800513,2.06,226.29,226.23,6.59972367]
[1733968800718,2.2082,226.26,226.25,6.59972367]
[1733968801519,1.4771,226.35,226.25,6.59972367]
[1733968801719,6.59972367,226.33,226.27,6.59972367]
[1733968802613,2.2078,226.3,226.27,6.59972367]
[1733968805018,1.3636,226.42,226.27,6.59972367]
[1733968805215,6.59972367,226.37,226.3,6.59972367]
[1733968805521,1.3636,226.42,226.25,6.59972367]
[1733968805522,6.59972367,226.31,226.25,6.59972367]
[1733968805715,2.2081,226.27,226.25,6.59972367]
[1733968805919,6.59972367,226.31,226.25,6.59972367]
[1733968806121,8.65972367,226.33,226.25,6.59972367]
[1733968806418,6.59972367,226.31,226.25,6.59972367]
[1733968806822,2.06,226.33,226.25,6.59972367]
[1733968807022,2.06,226.33,226.27,6.59972367]
[1733968807323,6.59972367,226.36,226.29,6.59972367]
[1733968807819,2.06,226.38,226.31,6.59972367]
[1733968808220,2.06,226.38,226.31,8.80732367]
[1733968808621,2.06,226.39,226.31,6.59972367]
[1733968808818,2.2071,226.37,226.31,6.59972367]
[1733968809020,6.59972367,226.37,226.3,6.59972367]
[1733968809427,2.06,226.39,226.28,7.98882367]
[1733968809428,6.59972367,226.35,226.28,7.98882367]
[1733968809629,6.59972367,226.33,226.28,1.3891]
[1733968810521,6.59972367,226.31,226.22,1.3343]
[1733968810718,6.59972367,226.29,226.22,9.27532367]
[1733968811222,2.208,226.28,226.22,9.27532367]
[1733968811422,6.59972367,226.29,226.22,2.6756]
[1733968811628,8.65972367,226.29,226.22,2.6756]
[1733968811927,2.2082,226.26,226.22,2.6756]
[1733968812124,2.06,226.29,226.23,6.59972367]
[1733968812527,6.59972367,226.28,226.22,2.6756]
[1733968813222,2.2081,226.27,226.22,2.6756]
[1733968813931,2.2082,226.26,226.22,2.6756]
[1733968814120,12.37253097,226.29,226.17,2.209]
[1733968814430,12.37253097,226.29,226.15,12.37253097]
[1733968815121,2.2084,226.24,226.18,2.2088]
[1733968816024,2.2084,226.23,226.18,2.2088]
[1733968816230,2.2084,226.23,226.15,12.37253097]
[1733968816834,2.2083,226.24,226.19,2.2088]
[1733968817432,12.37253097,226.29,226.15,12.37253097]
[1733968818428,2.2084,226.24,226.18,2.2088]
[1733968819035,12.37253097,226.29,226.15,12.37253097]
[1733968819234,12.37253097,226.29,226.17,2.209]
[1733968820027,12.37253097,226.29,226.15,14.58163097]
[1733968820230,12.37253097,226.29,226.15,12.37253097]
[1733968820430,2.2087,226.21,226.15,12.37253097]
[1733968820627,2.2087,226.21,226.16,2.2091]
[1733968820931,2.2086,226.21,226.14,2.7383]
[1733968821231,2.06,226.24,226.14,2.7383]
[1733968821425,2.2085,226.23,226.14,2.7383]
[1733968821625,2.2085,226.23,226.17,2.209]
[1733968821826,2.06,226.24,226.17,2.209]
[1733968823049,2.06,226.24,226.14,2.7383]
[1733968824133,2.2089,226.19,226.14,2.7383]
[1733968824333,2.2089,226.19,226.14,4.9476]
[1733968825436,2.06,226.24,226.14,4.9476]
[1733968825437,2.2092,226.16,226.14,1.3904]
[1733968825637,2.06,226.19,226.12,0.18257]
[1733968826138,2.209,226.17,226.12,0.18257]
[1733968826334,2.06,226.19,226.12,0.18257]
[1733968827739,2.2092,226.16,226.12,0.18257]
[1733968830946,2.06,226.19,226.12,10.49510097]
[1733968831144,2.06,226.22,226.13,1.3764]
[1733968831338,2.06,226.22,226.16,2.209]
[1733968831339,4.2686,226.22,226.16,2.209]
[1733968831738,2.06,226.22,226.16,2.209]
[1733968832170,4.2685,226.22,226.13,2.8135]
[1733968833247,2.2087,226.21,226.17,6.60231423]
[1733968833844,2.06,226.22,226.17,6.60231423]
[1733968834144,2.2085,226.23,226.19,6.60231423]
[1733968834343,4.4141,226.38,226.21,6.60231423]
[1733968834539,6.60231423,226.29,226.23,6.60231423]
[1733968834742,2.06,226.28,226.23,6.60231423]
[1733968835146,2.06,226.28,226.23,8.81061423]
[1733968835453,2.2078,226.3,226.23,8.81061423]
[1733968835454,2.06,226.3,226.23,6.60231423]
[1733968836448,6.60231423,226.29,226.21,6.60231423]
[1733968836943,6.60231423,226.29,226.23,6.60231423]
[1733968838042,2.208,226.28,226.23,6.60231423]
[1733968838244,2.8434,226.36,226.25,6.60231423]
[1733968838471,2.2077,226.31,226.25,8.81051423]
[1733968839440,2.2077,226.31,226.25,2.2082]
[1733968839749,2.2078,226.3,226.25,8.81051423]
[1733968842743,6.60231423,226.29,226.23,1.3649]
[1733968842946,6.60231423,226.27,226.23,1.3649]
[1733968843551,2.2082,226.26,226.23,1.3649]
[1733968844351,2.06,226.28,226.23,1.3649]
[1733968844552,2.208,226.27,226.23,1.3649]
[1733968844948,2.06,226.28,226.24,6.60231423]
[1733968847253,2.06,226.31,226.25,2.2082]
[1733968847760,227.94167553,226.51,226.3,6.60231423]
[1733968847960,6.60231423,226.39,226.32,6.60231423]
[1733968848256,2.06,226.38,226.32,6.60231423]
[1733968848457,6.60231423,226.39,226.25,1.4051]
[1733968848458,2.06,226.39,226.34,6.60231423]
[1733968848851,6.60231423,226.41,226.34,6.60231423]
[1733968849051,13.92693537,226.41,226.34,6.60231423]
[1733968849254,2.2069,226.39,226.34,8.80961423]
[1733968849663,13.92693537,226.41,226.34,6.60231423]
[1733968849857,2.2071,226.37,226.34,6.60231423]
[1733968850057,6.60231423,226.39,226.34,6.60231423]
[1733968850458,2.207,226.38,226.34,6.60231423]
[1733968851160,2.207,226.38,226.32,2.2075]
[1733968851759,2.2072,226.37,226.3,12.50931284]
[1733968851962,2.2072,226.37,226.3,10.30161284]
[1733968852360,2.2072,226.37,226.31,2.2076]
[1733968853367,2.06,226.4,226.31,2.2076]
[1733968853660,12.36161284,226.4,226.29,2.2078]
[1733968854459,2.2071,226.37,226.29,2.2078]
[1733968854663,2.06,226.51,226.35,10.30161284]
[1733968854862,2.06,226.51,226.38,10.30161284]
[1733968855056,10.30161284,226.49,226.38,12.50861284]
[1733968856558,2.2065,226.44,226.38,12.50861284]
[1733968857662,2.2067,226.41,226.35,10.30161284]
[1733968857867,2.2067,226.41,226.34,2.06]
[1733968858068,2.2067,226.41,226.33,2.06]
[1733968858362,2.2067,226.41,226.35,2.2072]
[1733968858767,2.2067,226.41,226.33,2.06]
[1733968859661,2.2067,226.41,226.36,2.2071]
[1733968859863,2.2067,226.41,226.33,2.06]
[1733968860368,2.2067,226.41,226.35,2.2072]
[1733968860567,2.2067,226.41,226.33,2.06]
[1733968860868,2.2067,226.41,226.36,2.2072]
[1733968863262,2.2067,226.41,226.35,10.30161284]
[1733968863568,2.2067,226.41,226.37,2.2071]
[1733968864368,2.2064,226.44,226.39,2.2068]
[1733968866669,7.46598085,226.46,226.38,10.30161284]
[1733968866869,4.3062,226.46,226.41,2.2066]
[1733968867076,10.30161284,226.52,226.38,10.30161284]
[1733968867272,2.1,226.48,226.38,10.30161284]
[1733968867467,4.3061,226.48,226.38,10.30161284]
[1733968867672,2.2061,226.48,226.41,10.30161284]
[1733968867970,2.2057,226.51,226.46,2.2062]
[1733968872976,2.1,226.54,226.46,2.2062]
[1733968872977,2.2055,226.53,226.46,2.2062]
[1733968873179,2.2055,226.53,226.47,8.79115257]
[1733968874870,2.2055,226.53,226.48,2.206]
[1733968875477,11.75082192,226.54,226.43,2.6927]
[1733968875478,6.58515257,226.52,226.43,2.6927]
[1733968875696,6.58515257,226.5,226.43,2.6927]
[1733968875880,6.58515257,226.5,226.43,9.27785257]
[1733968876069,2.2058,226.5,226.45,6.58515257]
[1733968876273,6.58515257,226.52,226.45,6.58515257]
[1733968876780,2.2058,226.5,226.45,8.79145257]
[1733968881377,6.58515257,226.5,226.43,1.3539]
[1733968881579,6.58515257,226.48,226.43,1.3539]
[1733968882077,2.206,226.48,226.43,1.3539]
[1733968882277,2.206,226.48,226.44,6.58515257]
[1733968882780,2.1,226.5,226.38,2.1]
[1733968882986,6.58515257,226.46,226.39,6.58515257]
[1733968883177,6.58515257,226.44,226.37,1.468]
[1733968883381,6.58515257,226.44,226.37,8.05315257]
[1733968883382,8.68515257,226.44,226.37,8.05315257]
[1733968883681,2.1,226.44,226.39,6.58515257]
[1733968884082,2.1,226.44,226.41,6.58515257]
[1733968885177,2.1,226.44,226.41,8.79175257]
[1733968885376,2.1,226.44,226.41,6.58515257]
[1733968887876,2.2062,226.46,226.42,2.2066]
[1733968889486,2.2062,226.46,226.43,6.58515257]
[1733968889683,2.2061,226.47,226.43,6.58515257]
[1733968891081,2.06,226.51,226.45,6.58515257]
[1733968891280,5.16566935,226.54,226.47,6.58515257]
[1733968891484,13.81082192,226.54,226.47,6.58515257]
[1733968892885,6.58515257,226.52,226.43,2.06]
[1733968893085,6.58515257,226.52,226.45,6.58515257]
[1733968893786,2.2059,226.49,226.45,6.58515257]
[1733968895086,2.2058,226.5,226.45,8.79145257]
[1733968895286,13.81082192,226.54,226.47,6.58515257]
[1733968895698,8.64515257,226.54,226.47,6.58515257]
[1733968895982,10.85065257,226.54,226.47,8.79125257]
[1733968896183,4.2655,226.54,226.49,6.58515257]
[1733968897085,2.2053,226.55,226.49,8.79105257]
[1733968897290,2.2053,226.55,226.51,6.58515257]
[1733968899485,10.92834685,226.54,226.49,6.58515257]
[1733968899688,8.64515257,226.56,226.49,6.58515257]
[1733968899987,6.58515257,226.62,226.54,6.58515257]
[1733968900180,8.72472794,226.61,226.56,6.58515257]
[1733968900385,2.2047,226.61,226.56,6.58515257]
[1733968901386,2.2048,226.6,226.56,6.58515257]
[1733968903378,2.2045,226.64,226.58,6.58515257]
[1733968903581,8.64515257,226.66,226.59,2.2049]
[1733968903786,8.64515257,226.66,226.58,6.58515257]
[1733968903787,8.71182648,226.65,226.58,6.58515257]
[1733968904087,8.64515257,226.66,226.56,6.58515257]
[1733968904088,6.58515257,226.64,226.56,6.58515257]
[1733968904483,8.64515257,226.64,226.56,6.58515257]
[1733968905194,6.58515257,226.62,226.55,6.58515257]
[1733968905386,6.58515257,226.6,226.54,1.3484]
[1733968905581,6.58515257,226.58,226.46,1.344]
[1733968905785,6.58515257,226.58,226.51,6.58515257]
[1733968906183,6.58515257,226.56,226.47,1.4766]
[1733968906384,6.58515257,226.56,226.49,6.58515257]
[1733968907288,2.2055,226.53,226.49,6.58515257]
[1733968908786,2.2054,226.55,226.49,6.58515257]
[1733968910394,2.2059,226.5,226.47,1.4766]
[1733968912001,2.06,226.54,226.48,6.58515257]
[1733968912197,6.58515257,226.56,226.48,6.58515257]
[1733968912393,2.2054,226.55,226.49,2.2059]
[1733968914098,2.2055,226.54,226.48,6.58515257]
[1733968914291,2.2055,226.54,226.48,8.79115257]
[1733968915090,6.58515257,226.55,226.48,6.58515257]
[1733968915297,6.58515257,226.53,226.47,1.4766]
[1733968915495,2.06,226.52,226.47,1.4766]
[1733968916093,2.2058,226.5,226.47,1.4766]
[1733968919990,2.2057,226.51,226.47,1.4766]
[1733968920801,2.2057,226.51,226.48,6.58515257]
[1733968920999,2.2056,226.53,226.48,6.58515257]
[1733968921199,5.318129,226.66,226.5,6.58515257]
[1733968921393,2.2052,226.57,226.5,6.58515257]
[1733968921595,2.2052,226.57,226.52,6.58515257]
[1733968922001,2.2052,226.57,226.52,8.79075257]
[1733968922197,2.06,226.59,226.52,6.58515257]
[1733968922401,2.06,226.62,226.56,6.58515257]
[1733968922603,6.58515257,226.63,226.56,6.58515257]
[1733968922604,8.64515257,226.63,226.56,6.58515257]
[1733968922795,8.69852356,226.62,226.56,6.58515257]
[1733968923001,8.64515257,226.63,226.56,6.58515257]
[1733968923405,2.2049,226.6,226.56,6.58515257]
[1733968925403,2.2049,226.6,226.54,2.2054]
[1733968925601,12.34153675,226.63,226.5,10.28153675]
[1733968925805,12.34153675,226.63,226.48,4.8842]
[1733968926100,12.34153675,226.63,226.51,2.2057]
[1733968926101,2.205,226.59,226.51,2.2057]
[1733968926304,2.06,226.63,226.5,10.28153675]
[1733968926703,2.06,226.63,226.54,2.2053]
[1733968927704,2.2049,226.6,226.54,2.2053]
[1733968928295,2.2047,226.62,226.57,2.2051]
[1733968929203,2.2047,226.62,226.56,2.2052]
[1733968929605,2.06,226.64,226.53,2.06]
[1733968929910,10.28153675,226.63,226.5,12.34153675]
[1733968930201,2.2047,226.61,226.5,12.34153675]
[1733968930406,2.2047,226.61,226.55,2.2052]
[1733968931002,2.06,226.64,226.56,2.2052]
[1733968931204,2.2046,226.62,226.56,2.2052]
[1733968931804,2.2048,226.61,226.56,2.2052]
[1733968932008,10.28153675,226.66,226.5,12.34153675]
[1733968932208,2.06,226.65,226.57,2.2051]
[1733968932707,2.2046,226.62,226.57,2.2051]
[1733968933905,12.34153675,226.66,226.56,1.3526]
[1733968934102,2.2047,226.61,226.56,1.3526]
[1733968935507,10.28153675,226.63,226.56,1.3526]
[1733968935703,10.28153675,226.6,226.48,2.8242]
[1733968936009,2.06,226.59,226.49,1.3664]
[1733968936205,2.2055,226.54,226.49,1.3664]
[1733968936409,2.06,226.59,226.49,1.3664]
[1733968936610,2.2057,226.51,226.49,1.3664]
[1733968937609,2.2058,226.5,226.49,1.3664]
[1733968938504,5.38718311,226.66,226.49,1.3664]
[1733968938505,2.2056,226.53,226.49,1.3664]
[1733968938709,2.06,226.58,226.49,1.3664]
[1733968939012,2.06,226.63,226.5,10.28153675]
[1733968939214,2.205,226.59,226.53,2.2055]
[1733968939516,2.06,226.63,226.51,2.06]
[1733968939704,8.71930405,226.62,226.51,2.06]
[1733968939905,8.71930405,226.61,226.51,2.06]
[1733968940105,8.71930405,226.6,226.54,2.2054]
[1733968940310,8.71930405,226.62,226.54,2.2054]
[1733968940515,182.00167553,226.73,226.6,10.28153675]
[1733968940711,11.27016612,226.72,226.61,1.3997]
[1733968940910,2.204,226.68,226.62,2.2046]
[1733968941116,2.204,226.68,226.61,1.3997]
[1733968941614,2.2042,226.66,226.61,3.4597]
[1733968943014,2.2042,226.66,226.61,1.3997]
[1733968944714,7.46398975,226.7,226.61,1.3997]
[1733968944914,2.2045,226.64,226.61,1.3997]
[1733968945314,2.2045,226.64,226.59,2.06]
[1733968945315,7.46398975,226.7,226.57,12.48653675]
[1733968945615,7.46398975,226.7,226.57,10.28153675]
[1733968945810,7.46398975,226.7,226.58,2.205]
[1733968946515,10.28153675,226.68,226.57,2.06]
[1733968948613,2.2046,226.62,226.56,2.2052]
[1733968948819,2.06,226.65,226.55,2.06]
[1733968949018,2.06,226.65,226.54,14.54683675]
[1733968949615,2.06,226.65,226.54,12.34153675]
[1733968951217,2.06,226.65,226.51,10.28153675]
[1733968951218,12.34153675,226.65,226.51,10.28153675]
[1733968951419,8.42328226,226.64,226.52,2.06]
[1733968951623,2.205,226.59,226.52,2.2055]
[1733968951917,12.34153675,226.65,226.52,4.2655]
[1733968952123,8.42274202,226.64,226.52,2.06]
[1733968952319,12.34153675,226.65,226.52,2.06]
[1733968952515,8.42235949,226.64,226.52,2.06]
[1733968952719,12.34153675,226.65,226.53,2.2055]
[1733968952920,8.42208293,226.64,226.52,2.06]
[1733968953124,12.34153675,226.65,226.52,2.06]
[1733968954013,2.2049,226.59,226.54,2.2054]
[1733968954617,2.2048,226.6,226.54,2.2054]
[1733968954816,2.2048,226.6,226.55,2.2053]
[1733968955717,2.2048,226.6,226.53,2.2054]
[1733968956915,2.2049,226.59,226.53,2.2054]
[1733968957113,2.2049,226.59,226.55,6.58095527]
[1733968965126,2.2051,226.58,226.55,6.58095527]
[1733968969425,2.06,226.65,226.52,2.06]